bitfinex-derivatives/quotes_ETHF0:USTF0_20260207
["timestamp","ask_amount","ask_price","bid_price","bid_amount"]
[1770461719558,1.318904,2011.0,2010.3,2.38724361]
[1770461720062,1.318904,2011.0,2010.1,5.11628519]
[1770461720063,1.32372014,2011.1,2010.8,2.13839361]
[1770461720258,1.31918178,2011.1,2010.8,2.13839361]
[1770461720459,1.31918178,2011.2,2010.8,2.13839361]
[1770461720663,7.39690857,2011.4,2011.0,2.13839361]
[1770461720964,8.71551912,2011.4,2011.0,2.14297665]
[1770461721153,7.39690857,2011.5,2011.0,2.14297665]
[1770461721354,1.31409187,2011.4,2011.0,2.14297665]
[1770461721555,1.31409187,2011.4,2011.0,0.00458304]
[1770461721763,8.69587594,2011.5,2011.0,2.14297665]
[1770461721957,1.29896737,2011.4,2011.0,2.14297665]
[1770461722557,7.40267653,2011.7,2011.4,2.13839361]
[1770461722861,1.29391596,2012.0,2011.6,2.13839361]
[1770461723063,1.29391596,2012.1,2011.6,2.13839361]
[1770461723261,1.29391596,2012.1,2011.3,2.16656683]
[1770461723462,7.39690857,2011.9,2010.9,2.33480103]
[1770461723656,7.39690857,2012.0,2010.9,2.33480103]
[1770461723856,7.39690857,2012.1,2010.9,2.33480103]
[1770461724261,18.25092374,2012.5,2011.0,0.24877]
[1770461724466,7.40146626,2012.5,2011.1,2.33598683]
[1770461724769,7.40146626,2012.5,2011.1,2.58474683]
[1770461725169,0.22908618,2012.4,2011.1,2.58474683]
[1770461727068,0.22908618,2012.4,2011.3,2.32404151]
[1770461729361,0.00455769,2012.5,2011.3,2.32404151]
[1770461729566,0.00455769,2012.5,2011.8,2.3274072]
[1770461729767,0.22613656,2012.5,2011.8,2.3274072]
[1770461730272,0.22157887,2012.8,2011.8,2.3274072]
[1770461731369,0.22745282,2012.8,2011.8,2.3274072]
[1770461731569,0.2922273,2012.8,2011.8,2.3274072]
[1770461732473,0.00587395,2012.8,2011.8,2.3274072]
[1770461732867,0.28208891,2012.8,2011.8,2.3274072]
[1770461735363,0.28208891,2012.8,2011.2,2.29596402]
[1770461735570,0.23152298,2012.2,2011.0,2.54907207]
[1770461738561,0.20763885,2012.6,2011.4,2.60843492]
[1770461739172,0.20763885,2012.6,2011.4,2.35971492]
[1770461739873,0.39366804,2012.3,2011.1,2.35971492]
[1770461740176,0.39366804,2012.2,2011.0,0.00433805]
[1770461740568,0.39366804,2012.2,2011.0,2.36405297]
[1770461743376,0.39366804,2012.2,2011.0,2.61282297]
[1770461744677,0.39366804,2012.2,2011.1,0.24876]
[1770461744873,0.39366804,2012.2,2011.2,2.35971492]
[1770461745178,0.30500472,2012.7,2011.4,2.35971492]
[1770461745570,0.30594103,2012.7,2011.8,2.35971492]
[1770461746073,0.30594103,2012.6,2011.8,2.35971492]
[1770461747481,0.28849728,2012.5,2011.8,2.35971492]
[1770461749173,0.2701211,2012.4,2011.3,2.35971492]
[1770461749975,0.25442395,2012.8,2011.1,2.35971492]
[1770461749976,0.36087122,2012.0,2011.1,2.35971492]
[1770461750182,0.3530167,2011.9,2011.1,2.35971492]
[1770461751281,0.34375363,2011.8,2011.1,2.35971492]
[1770461752688,6.24648302,2011.8,2011.1,2.35971492]
[1770461753086,5.90272939,2011.8,2011.1,2.35971492]
[1770461753288,0.30906928,2011.7,2011.1,2.35971492]
[1770461754584,5.90272939,2011.8,2011.1,2.35971492]
[1770461755081,6.20670118,2011.8,2011.1,2.35971492]
[1770461755488,0.2983669,2011.7,2011.1,2.35971492]
[1770461756991,0.2894392,2011.6,2011.0,2.36405297]
[1770461758290,5.90272939,2011.7,2011.0,2.36405297]
[1770461758989,5.90272939,2011.8,2011.0,2.36405297]
[1770461759194,6.16170344,2011.8,2011.0,2.36405297]
[1770461759787,5.90272939,2011.8,2011.0,2.36405297]
[1770461760086,0.26115647,2011.8,2011.0,2.36405297]
[1770461760287,0.25382268,2011.7,2011.0,2.36405297]
[1770461760585,5.90272939,2011.8,2011.0,2.36405297]
[1770461760586,6.15520102,2011.8,2011.0,2.36405297]
[1770461760785,5.90272939,2011.9,2011.0,2.36405297]
[1770461761884,6.16007698,2011.9,2011.0,2.36405297]
[1770461762495,5.90272939,2011.9,2011.0,2.36405297]
[1770461762691,5.90272939,2012.0,2011.0,2.36405297]
[1770461763790,5.90272939,2012.0,2011.0,2.61282297]
[1770461763992,5.90272939,2011.9,2011.0,2.61282297]
[1770461764196,5.90272939,2012.0,2011.2,2.35971492]
[1770461764597,5.90272939,2012.1,2011.2,2.35971492]
[1770461764891,5.90272939,2012.1,2011.4,2.35971492]
[1770461765092,0.23737287,2012.0,2011.4,2.35971492]
[1770461765293,6.14010226,2012.0,2011.4,2.35971492]
[1770461765500,0.22769439,2011.9,2011.4,2.35971492]
[1770461767101,0.22769439,2011.9,2011.1,2.18956949]
[1770461767305,0.20714601,2011.8,2011.1,2.18956949]
[1770461767800,0.18913178,2011.6,2011.0,0.00433805]
[1770461768102,0.18913178,2011.6,2011.0,2.20291466]
[1770461768297,0.18913178,2011.6,2011.0,0.00433805]
[1770461768501,0.18913178,2011.6,2010.8,2.19857661]
[1770461768502,0.18094033,2011.4,2010.8,2.19857661]
[1770461768702,6.08366972,2011.4,2010.8,2.19857661]
[1770461769002,0.18094033,2011.3,2010.6,2.16603838]
[1770461769199,2.06738119,2011.2,2010.6,2.16603838]
[1770461769394,2.07204356,2011.2,2010.6,2.17050391]
[1770461769796,2.0795157,2011.1,2010.6,2.17050391]
[1770461771803,5.90739176,2011.2,2010.6,2.17050391]
[1770461771997,0.00466237,2011.2,2010.6,2.17050391]
[1770461772401,2.22379925,2011.2,2010.6,2.17050391]
[1770461773608,0.00466237,2011.2,2010.6,2.17050391]
[1770461775202,2.20857676,2011.4,2010.6,2.17050391]
[1770461776301,0.00616938,2011.4,2010.6,2.17050391]
[1770461777707,2.18850525,2011.4,2010.6,2.17050391]
[1770461780012,2.17670464,2011.3,2010.6,2.17050391]
[1770461781406,2.16312598,2011.0,2010.6,0.00446553]
[1770461781605,2.16312598,2011.0,2010.4,2.1181741]
[1770461781800,1.82437686,2010.9,2010.4,2.1181741]
[1770461782406,1.82437686,2010.9,2010.0,2.1181741]
[1770461782699,1.82437686,2010.9,2010.0,2.12264369]
[1770461782700,2.21913688,2010.8,2010.0,2.12264369]
[1770461783908,2.21913688,2010.6,2010.0,0.00446959]
[1770461784109,2.21913688,2010.3,2009.7,2.1181741]
[1770461784619,2.21913688,2010.2,2009.7,2.1181741]
[1770461785111,2.21913688,2010.2,2009.7,2.12383384]
[1770461785311,2.21913688,2010.2,2009.7,0.00565974]
[1770461785911,2.21913688,2010.2,2009.0,2.1181741]
[1770461785912,2.21913688,2010.1,2009.0,2.1181741]
[1770461786817,2.21913688,2010.1,2009.0,2.4517525]
[1770461787112,2.21913688,2010.1,2009.0,2.4577603]
[1770461787508,2.21913688,2010.1,2009.1,2.1181741]
[1770461787709,2.21913688,2010.3,2009.1,2.1181741]
[1770461788110,2.21913688,2010.3,2009.1,5.23884633]
[1770461788317,2.21913688,2010.3,2009.2,2.3671641]
[1770461790914,2.21913688,2010.3,2009.4,2.1181741]
[1770461791225,2.21913688,2010.6,2009.4,2.1181741]
[1770461791517,2.21913688,2010.6,2009.4,2.3671341]
[1770461791821,2.21913688,2010.6,2009.7,2.1181741]
[1770461798627,2.1306746,2010.8,2010.1,2.22060023]
[1770461799133,2.1306746,2011.0,2010.1,2.22060023]
[1770461799527,3.12067223,2010.9,2010.0,2.22060023]
[1770461799722,3.12067223,2010.9,2009.4,0.24897]
[1770461799723,5.90272939,2010.8,2009.4,0.24897]
[1770461799921,2.1306746,2010.7,2009.5,2.22060023]
[1770461800132,2.1306746,2010.6,2009.5,2.22060023]
[1770461802728,2.1306746,2010.6,2009.5,2.46955023]
[1770461803333,2.1306746,2010.5,2009.5,2.46955023]
[1770461808834,5.93065074,2010.6,2009.5,2.46955023]
[1770461808835,2.1306746,2010.3,2009.5,2.46955023]
[1770461810339,2.1306746,2010.2,2009.5,2.46955023]
[1770461811542,5.93065074,2010.3,2009.5,2.46955023]
[1770461811738,2.1306746,2010.3,2009.5,2.46955023]
[1770461813337,2.1306746,2010.2,2009.5,2.46955023]
[1770461814239,2.1306746,2010.1,2009.5,2.46955023]
[1770461816044,2.1306746,2009.9,2009.5,2.22060023]
[1770461816245,2.13484997,2009.9,2009.5,2.22060023]
[1770461816540,1.32574336,2009.9,2009.5,2.22060023]
[1770461819446,5.93065074,2010.1,2009.5,2.46955023]
[1770461819648,5.93065074,2010.2,2009.5,2.46955023]
[1770461820048,8.06132534,2010.2,2009.5,2.46955023]
[1770461820447,5.93065074,2010.1,2009.5,2.46955023]
[1770461820651,5.93568395,2010.1,2009.5,2.46955023]
[1770461820851,0.00503321,2010.1,2009.7,2.22060023]
[1770461821051,5.93065074,2010.3,2009.7,2.22060023]
[1770461821746,8.06132534,2010.3,2009.7,2.22060023]
[1770461822150,8.06545075,2010.3,2009.7,2.22060023]
[1770461822553,5.93477615,2010.3,2009.7,2.22060023]
[1770461823051,8.06545075,2010.3,2009.7,2.22060023]
[1770461826754,1.89443335,2010.2,2009.7,2.22060023]
[1770461826954,7.8292095,2010.3,2009.7,2.22060023]
[1770461827156,7.81428388,2010.2,2009.7,2.22060023]
[1770461827456,1.88363314,2010.1,2009.7,2.22060023]
[1770461827750,1.88363314,2010.1,2009.6,2.10111195]
[1770461828753,1.88363314,2010.1,2009.2,7.4099864]
[1770461828754,5.93477615,2010.3,2009.8,1.85217195]
[1770461830953,7.81766077,2010.3,2009.8,1.85217195]
[1770461831156,5.93477615,2010.3,2009.8,1.85217195]
[1770461833956,7.73306852,2010.3,2009.8,1.85217195]
[1770461834657,5.93477615,2010.3,2009.8,1.85217195]
[1770461834862,7.71725991,2010.3,2009.8,1.85217195]
[1770461835561,1.77303318,2010.3,2009.8,1.85217195]
[1770461836266,0.00412541,2010.3,2010.0,4.00823397]
[1770461836468,7.41331343,2010.8,2010.1,1.84109408]
[1770461836668,9.16942399,2010.8,2010.1,1.84109408]
[1770461837065,1.75611056,2010.8,2010.1,1.84109408]
[1770461837460,0.00414598,2010.8,2010.3,1.84109408]
[1770461837867,1.74968759,2010.8,2010.3,1.84109408]
[1770461838057,2.16713989,2010.4,2009.8,4.80508771]
[1770461838262,0.9367383,2010.3,2009.8,1.84109408]
[1770461840672,1.24105904,2010.5,2009.8,1.84109408]
[1770461843772,1.19969706,2010.6,2009.8,2.09001408]
[1770461844069,1.19969706,2010.7,2010.0,1.84109408]
[1770461848472,1.11877772,2010.8,2010.0,1.84109408]
[1770461848671,0.00414598,2010.8,2010.2,1.84109408]
[1770461850877,8.89835419,2011.1,2010.4,1.84109408]
[1770461851074,24.2854727,2012.8,2009.7,13.39269377]
[1770461851075,4.981,2012.3,2011.0,1.1916833]
[1770461851275,1.96317177,2011.4,2011.0,0.9429133]
[1770461851471,1.96317177,2011.9,2011.0,0.9429133]
[1770461851872,1.96710602,2011.9,2011.1,0.24876]
[1770461852478,4.36262063,2011.8,2011.1,0.24876]
[1770461853277,3.84988063,2011.8,2011.3,0.24873]
[1770461853480,0.00393425,2011.9,2011.3,0.24873]
[1770461853785,3.85381488,2011.9,2011.3,0.24873]
[1770461854786,2.55734708,2012.6,2011.3,2.97193082]
[1770461854985,2.55734708,2012.6,2011.4,8.25000951]
[1770461855186,2.55734708,2012.4,2011.7,0.24868]
[1770461855779,2.56298131,2012.4,2011.7,0.4104796]
[1770461855987,2.59724416,2012.2,2011.7,0.4104796]
[1770461856481,2.59724416,2012.2,2011.8,0.1557649]
[1770461856690,2.59724416,2012.2,2011.7,0.1557649]
[1770461856987,2.59724416,2012.0,2011.3,0.1557649]
[1770461858389,0.99899576,2011.9,2011.4,0.18175643]
[1770461858590,2.59724416,2012.1,2011.4,0.18175643]
[1770461859091,2.59724416,2011.9,2011.4,0.42790829]
[1770461859484,3.59623992,2011.8,2011.4,0.42790829]
[1770461859681,2.60061032,2011.7,2011.4,0.24872]
[1770461859879,2.60061032,2011.7,2011.4,0.40590195]
[1770461860080,0.99899576,2011.6,2011.4,0.24872]
[1770461860284,0.99899576,2011.6,2011.4,0.40590195]
[1770461860480,0.99899576,2011.6,2011.3,0.165302]
[1770461860691,3.60025935,2011.6,2011.0,0.00472383]
[1770461861192,3.60025935,2011.6,2011.1,0.00664556]
[1770461862084,2.67868074,2011.5,2011.1,0.00664556]
[1770461862284,3.6776765,2011.6,2011.1,0.00664556]
[1770461862491,2.67868074,2011.5,2011.0,0.00472383]
[1770461862988,2.68061131,2011.3,2010.6,0.06261771]
[1770461863185,2.68061131,2011.4,2010.7,0.06734154]
[1770461863492,3.67610596,2011.3,2010.7,0.06734154]
[1770461863693,2.6771102,2011.3,2010.7,0.06734154]
[1770461863989,3.67610596,2011.3,2010.7,0.07102167]
[1770461864388,2.6771102,2011.2,2010.7,0.00368013]
[1770461864588,2.6771102,2011.2,2010.7,0.10657634]
[1770461864989,2.67907667,2011.6,2010.8,0.10289621]
[1770461865293,2.67907667,2011.6,2011.0,0.10289621]
[1770461865586,0.99899576,2011.5,2011.0,0.10289621]
[1770461865792,2.6852092,2012.0,2011.3,0.09772102]
[1770461866190,2.6852092,2012.2,2011.5,0.10449785]
[1770461866388,2.6852092,2012.2,2011.6,0.10449785]
[1770461866585,2.6852092,2012.2,2011.5,0.24871]
[1770461866789,0.00563423,2012.4,2011.8,0.35208863]
[1770461866991,0.00563423,2012.4,2011.9,0.10341863]
[1770461867295,0.00563423,2012.4,2012.0,0.17984233]
[1770461867688,2.68574881,2012.6,2012.1,0.17221491]
[1770461868693,2.69041994,2012.6,2012.1,0.17221491]
[1770461868991,0.00467113,2012.6,2012.1,0.17221491]
[1770461869292,2.69472375,2012.6,2012.1,0.17221491]
[1770461869993,2.71355461,2012.5,2012.2,0.13685068]
[1770461870300,2.71822574,2012.6,2012.2,0.14054981]
[1770461870598,2.71822574,2012.6,2012.2,0.00369913]
[1770461870800,2.71822574,2012.6,2012.2,0.14546018]
[1770461871002,2.71822574,2012.6,2012.2,0.00369913]
[1770461871198,2.71822574,2012.6,2012.1,0.24864]
[1770461871395,2.71822574,2012.6,2012.2,0.15120934]
[1770461872302,2.71822574,2012.6,2012.2,0.1554528]
[1770461872602,0.00467113,2012.6,2012.2,0.1554528]
[1770461872801,2.71500594,2012.6,2012.2,0.1554528]
[1770461873299,2.71033481,2013.0,2012.5,0.24859]
[1770461873498,2.71033481,2013.0,2012.2,0.00424346]
[1770461874197,2.71033481,2013.0,2012.2,0.1966353]
[1770461874394,2.71577605,2013.0,2012.2,0.00424346]
[1770461874902,2.71577605,2013.0,2012.2,0.19577306]
[1770461875302,2.71577605,2013.0,2012.2,0.00424346]
[1770461875698,2.71577605,2013.0,2012.2,0.24807057]
[1770461877003,2.71577605,2013.0,2012.2,0.00424346]
[1770461877202,2.71577605,2013.0,2012.2,0.25726423]
[1770461877402,2.71577605,2013.0,2012.2,0.00424346]
[1770461877602,2.71577605,2013.0,2012.2,0.2625322]
[1770461877904,2.71577605,2013.0,2012.2,0.00424346]
[1770461880001,2.71577605,2013.0,2011.9,3.26333068]
[1770461880204,2.71577605,2013.0,2011.9,0.32313997]
[1770461880403,2.71577605,2013.0,2011.8,3.19900741]
[1770461880604,2.71577605,2013.0,2011.7,2.94019071]
[1770461880906,2.71577605,2013.0,2011.6,3.18889071]
[1770461881105,2.67953312,2012.9,2011.6,3.19270293]
[1770461881608,2.67953312,2012.9,2011.6,3.51466352]
[1770461881801,2.67953312,2012.9,2011.6,0.71701153]
[1770461882200,2.67953312,2012.9,2011.6,0.57447281]
[1770461883007,2.67953312,2012.9,2011.6,0.72053259]
[1770461883408,2.67953312,2012.9,2011.7,0.15021274]
[1770461884303,2.67953312,2012.9,2011.6,0.57447281]
[1770461884504,2.75483527,2012.8,2011.6,0.57447281]
[1770461885098,2.75483527,2012.8,2011.6,0.70685159]
[1770461885301,2.75483527,2012.8,2011.7,0.13237878]
[1770461887310,7.73583527,2012.8,2011.7,0.13237878]
[1770461887501,4.981,2012.8,2011.7,0.13237878]
[1770461887700,2.78313,2012.7,2011.8,0.19929447]
[1770461890914,2.78313,2012.7,2011.7,0.24868]
[1770461891607,2.78313,2012.7,2011.7,0.45426606]
[1770461891908,2.78313,2012.7,2011.7,0.24868]
[1770461891909,2.74077179,2012.6,2011.7,0.24868]
[1770461892314,2.74077179,2012.6,2011.7,5.59808273]
[1770461892712,2.74102033,2012.5,2011.7,0.24868]
[1770461895415,4.981,2012.5,2011.6,5.67193612]
[1770461895615,2.73718252,2012.4,2011.6,5.67193612]
[1770461895816,2.73606843,2012.3,2011.5,2.94019071]
[1770461896617,2.73606843,2012.3,2011.4,5.62951728]
[1770461896916,2.73606843,2012.3,2011.4,5.63392436]
[1770461897411,2.71590608,2012.1,2011.4,2.94459779]
[1770461897613,2.71590608,2012.1,2011.4,0.00440708]
[1770461898015,2.71590608,2012.1,2011.4,0.33824448]
[1770461899318,2.71590608,2012.1,2011.4,3.02757105]
[1770461900214,2.71590608,2012.1,2011.4,3.27629105]
[1770461901915,2.71590608,2012.5,2011.4,3.27629105]
[1770461902618,2.71590608,2012.5,2011.6,2.68932657]
[1770461903118,2.71590608,2012.5,2011.5,2.93803657]
[1770461903522,7.69690608,2012.4,2011.5,2.93803657]
[1770461903722,2.71590608,2012.3,2011.5,0.24871]
[1770461904620,2.71590608,2012.2,2011.5,0.24871]
[1770461907016,2.71590608,2012.2,2011.4,0.33824448]
[1770461908222,2.71590608,2012.1,2011.0,5.87828728]
[1770461908425,2.71590608,2012.1,2011.1,7.82229452]
[1770461908618,2.71590608,2012.1,2011.1,2.68932657]
[1770461909221,2.71590608,2012.1,2011.1,2.69443568]
[1770461909520,2.71590608,2012.1,2011.2,2.68932657]
[1770461910521,4.981,2012.5,2011.2,2.68932657]
[1770461910728,2.71590608,2012.3,2011.4,2.68932657]
[1770461911724,2.71590608,2012.2,2011.4,2.68932657]
[1770461912126,2.71590608,2012.2,2011.4,2.93804657]
[1770461913123,2.71590608,2012.6,2011.4,2.93804657]
[1770461914119,2.71590608,2012.6,2011.5,2.68932657]
[1770461914930,2.71590608,2012.4,2011.5,2.68932657]
[1770461919526,4.981,2012.7,2011.7,2.93868289]
[1770461919527,2.89988043,2012.6,2011.7,2.93868289]
[1770461919835,2.89988043,2012.6,2011.9,2.93868289]
[1770461923737,2.89988043,2012.6,2011.8,0.24867]
[1770461924131,2.89988043,2012.6,2011.8,3.18735289]
[1770461924332,2.89988043,2012.4,2011.6,5.8788736]
[1770461924536,2.89988043,2012.4,2011.6,2.93868289]
[1770461934542,2.89988043,2012.3,2011.6,2.93868289]
[1770461945750,5.06315718,2012.3,2011.6,2.93868289]
[1770461945952,5.06315718,2012.3,2011.4,2.72191711]
[1770461945953,2.63584644,2011.8,2011.4,2.72191711]
[1770461946150,2.63584644,2012.0,2011.4,2.72191711]
[1770461949053,2.63584644,2012.0,2011.2,2.72191711]
[1770461949253,2.63584644,2011.8,2011.2,2.72191711]
[1770461956958,4.981,2012.0,2011.1,0.33662681]
[1770461956959,2.64443528,2011.6,2011.1,0.33662681]
[1770461957153,2.64443528,2011.4,2010.9,2.78134994]
[1770461957353,2.64443528,2011.4,2010.8,2.78134994]
[1770461957664,2.64443528,2011.4,2010.9,2.78134994]
[1770461957862,2.64443528,2011.7,2010.9,2.78134994]
[1770461958160,2.6491914,2011.7,2011.0,2.16327675]
[1770461958359,2.6491914,2011.7,2011.1,2.78134994]
[1770461959164,2.64443528,2011.6,2010.9,3.11587193]
[1770461959362,2.64443528,2011.4,2010.9,3.11587193]
[1770461961872,2.64443528,2011.2,2010.9,0.33452199]
[1770461962074,2.64443528,2011.2,2010.7,2.78134994]
[1770461962663,2.64443528,2011.2,2010.7,3.1510157]
[1770461963068,2.64443528,2011.2,2010.7,3.15733729]
[1770461963967,2.64443528,2011.2,2010.7,0.00632159]
[1770461964169,2.64443528,2011.1,2010.6,2.78134994]
[1770461964872,2.64443528,2011.3,2010.6,2.78134994]
[1770461965072,2.64443528,2011.4,2010.9,2.78134994]
[1770461965272,7.44565334,2011.7,2010.9,2.78134994]
[1770461965273,2.64443528,2011.6,2010.9,2.78134994]
[1770461965466,2.64443528,2011.5,2010.9,2.78134994]
[1770461966666,0.00475612,2011.7,2010.9,2.78134994]
[1770461966972,2.6491914,2011.7,2010.9,2.78134994]
[1770461967373,0.00475612,2011.7,2010.9,2.78134994]
[1770461967873,0.00475612,2011.7,2010.9,3.03012994]
[1770461970264,2.6491914,2011.7,2010.9,3.03012994]
[1770461973272,0.00475612,2011.7,2010.9,3.03012994]
[1770461973477,2.64443528,2012.0,2011.1,2.78134994]
[1770461974478,2.65013776,2012.0,2011.1,2.78134994]
[1770461976076,0.00570248,2012.0,2011.1,2.78134994]
[1770461976273,2.50459083,2012.0,2011.1,2.78134994]
[1770461978270,2.49888835,2011.9,2011.1,2.78134994]
[1770461982781,2.49888835,2011.9,2011.0,2.75367085]
[1770461983580,2.49888835,2011.9,2011.0,2.50490085]
[1770461984685,2.49888835,2011.8,2011.0,2.50490085]
[1770461987388,2.49888835,2011.7,2011.0,2.50490085]
[1770461990482,2.49888835,2011.5,2010.7,2.50490085]
[1770461990786,2.16494255,2011.6,2010.7,2.50490085]
[1770461990787,2.49888835,2011.3,2010.7,2.50490085]
[1770461992784,2.49888835,2011.4,2010.7,2.50490085]
[1770461995587,9.93978557,2011.6,2010.7,2.50490085]
[1770461995785,7.44089722,2011.6,2010.7,2.50490085]
[1770461995989,2.49888835,2011.6,2010.7,2.50490085]
[1770461997691,2.49888835,2011.7,2010.7,2.75370085]
[1770461999991,2.16494255,2011.5,2010.7,2.50490085]
[1770462000194,2.49888835,2011.4,2010.7,2.50490085]
[1770462000888,2.16494255,2011.5,2010.7,2.50490085]
[1770462001087,2.49888835,2011.6,2010.7,2.50490085]
[1770462001294,2.49888835,2011.4,2010.7,2.50490085]
[1770462001685,2.49888835,2011.4,2010.6,2.89356708]
[1770462001890,7.47788835,2011.4,2010.6,0.38866623]
[1770462002085,2.49888835,2011.3,2010.6,0.00550737]
[1770462002395,2.49888835,2011.3,2010.4,2.50490085]
[1770462003291,2.49888835,2011.3,2010.4,2.51013167]
[1770462003991,2.49888835,2011.3,2010.4,0.00523082]
[1770462004193,2.49888835,2011.1,2010.4,0.00523082]
[1770462004393,2.49888835,2011.3,2010.4,2.51013167]
[1770462004698,2.49888835,2011.5,2010.4,2.89073535]
[1770462010601,2.51156306,2011.4,2010.4,2.89073535]
[1770462011598,2.51156306,2011.4,2010.4,3.13957535]
[1770462011799,2.51156306,2011.4,2010.5,2.49372878]
[1770462012104,2.51156306,2011.6,2010.5,2.49372878]
[1770462014902,2.51156306,2011.0,2010.4,0.3858345]
[1770462015794,2.51156306,2011.0,2010.4,2.87956328]
[1770462017211,2.51156306,2011.3,2010.4,2.87956328]
[1770462021504,9.95246028,2011.5,2010.5,2.49372878]
[1770462021905,2.51156306,2011.4,2010.5,2.49372878]
[1770462025309,9.95246028,2011.6,2010.5,2.49372878]
[1770462025609,2.51156306,2011.5,2010.5,2.49372878]
[1770462026509,7.44089722,2011.6,2010.5,2.74255878]
[1770462026809,2.51156306,2011.6,2010.7,2.49372878]
[1770462027404,4.67643358,2011.6,2010.8,2.49372878]
[1770462028210,2.51156306,2011.6,2010.8,2.49372878]
[1770462029011,4.67643358,2011.8,2011.0,2.49372878]
[1770462029210,2.51156306,2011.7,2011.0,2.49372878]
[1770462029413,4.67643358,2011.6,2011.0,2.49372878]
[1770462032312,2.51156306,2011.5,2011.0,2.49372878]
[1770462033014,4.67643358,2011.6,2011.0,2.49372878]
[1770462033625,2.51156306,2011.7,2011.0,2.49372878]
[1770462034417,4.67643358,2011.8,2011.0,2.49372878]
[1770462035717,2.37814198,2011.7,2011.0,2.49372878]
[1770462035919,2.37814198,2011.5,2011.0,2.49372878]
[1770462036113,2.37814198,2011.3,2010.8,2.81340011]
[1770462036715,1.56960402,2011.3,2010.8,2.81340011]
[1770462037220,2.37814198,2011.5,2010.8,2.81340011]
[1770462037813,2.16487052,2011.4,2010.8,2.81340011]
[1770462038111,2.37814198,2011.3,2010.8,2.81340011]
[1770462040115,2.37814198,2011.3,2010.8,2.56460011]
[1770462040320,2.37814198,2011.3,2010.4,3.3470173]
[1770462040321,2.37814198,2011.1,2010.7,2.56460011]
[1770462041819,2.37814198,2011.3,2010.7,2.56460011]
[1770462042224,2.37814198,2011.5,2010.8,2.56460011]
[1770462042422,2.37814198,2011.7,2010.8,2.56460011]
[1770462043622,2.37814198,2011.7,2011.0,2.56460011]
[1770462056524,9.8190392,2011.9,2011.0,2.81337011]
[1770462056823,2.37814198,2011.9,2011.0,2.81337011]
[1770462060221,0.00570248,2012.0,2011.2,2.56460011]
[1770462060427,2.37814198,2012.2,2011.4,2.81332011]
[1770462060626,2.37814198,2012.3,2011.4,2.81332011]
[1770462061836,2.37814198,2012.7,2011.9,2.56460011]
[1770462062729,2.38453777,2012.7,2011.9,2.81965778]
[1770462063938,2.28701743,2012.8,2011.9,2.81965778]
[1770462064137,0.07926122,2013.1,2012.6,2.56460011]
[1770462064343,1.75504743,2013.3,2012.6,2.56460011]
[1770462064642,1.75125188,2013.8,2012.6,2.56460011]
[1770462064840,1.7559029,2013.8,2012.6,2.56460011]
[1770462066047,1.45879316,2013.6,2012.6,2.56460011]
[1770462069635,1.63753501,2013.8,2012.6,2.81317011]
[1770462071843,1.56874335,2013.6,2012.6,2.81317011]
[1770462072535,0.00465102,2013.8,2012.3,2.52942834]
[1770462072536,1.56397083,2013.1,2012.3,2.52942834]
[1770462073646,1.55907051,2013.6,2012.3,2.52942834]
[1770462074050,0.33492252,2013.7,2012.3,2.52942834]
[1770462074051,1.53046804,2013.4,2012.3,2.52942834]
[1770462075650,1.52084361,2013.7,2012.7,2.52942834]
[1770462076645,1.5456293,2013.5,2012.7,2.52942834]
[1770462077245,1.5456293,2013.5,2012.5,2.52942834]
[1770462077952,4.98365102,2013.8,2012.5,2.52942834]
[1770462077953,1.52528551,2013.6,2012.5,2.52942834]
[1770462078346,1.52528551,2013.6,2012.5,2.77800834]
[1770462078853,1.52528551,2013.6,2012.7,2.52942834]
[1770462082249,1.51715182,2013.8,2012.7,2.77798834]
[1770462086053,1.51715182,2013.8,2012.7,2.52942834]
[1770462086054,1.51041364,2013.6,2012.7,2.52942834]
[1770462087252,1.50555118,2013.8,2012.7,2.52942834]
[1770462087449,1.50555118,2013.8,2012.7,2.77798834]
[1770462091261,1.48919164,2013.7,2012.7,2.77798834]
[1770462091461,7.44554824,2013.8,2012.7,2.77798834]
[1770462091764,8.93290422,2013.8,2012.7,2.77798834]
[1770462092361,1.48270652,2013.7,2012.7,2.77798834]
[1770462093363,1.48256238,2013.6,2012.7,2.77798834]
[1770462093865,1.48256238,2013.6,2012.7,2.52942834]
[1770462094264,1.47242986,2013.5,2012.7,2.52942834]
[1770462094963,1.47228682,2013.4,2012.7,2.52942834]
[1770462096162,1.47228682,2013.4,2012.3,7.76881447]
[1770462096163,1.46304088,2013.3,2012.3,2.45239858]
[1770462096557,1.46388357,2013.1,2012.3,2.45239858]
[1770462098263,1.45697817,2013.0,2012.3,2.45239858]
[1770462098460,1.45697817,2013.0,2012.0,2.45239858]
[1770462099466,2.14388345,2012.9,2012.0,2.45239858]
[1770462100970,2.14388345,2012.9,2011.9,2.45879625]
[1770462101772,2.39243345,2012.9,2011.9,0.00639767]
[1770462101962,9.70844553,2012.8,2011.9,0.00639767]
[1770462102166,2.26754831,2012.7,2011.9,0.00639767]
[1770462102563,2.26754831,2012.7,2011.9,2.45879625]
[1770462106471,2.14621167,2012.8,2011.9,2.45879625]
[1770462108479,2.15247421,2013.3,2011.9,2.45879625]
[1770462111775,2.14156568,2013.0,2011.9,2.45879625]
[1770462112481,2.14156568,2013.0,2011.9,2.70744625]
[1770462115175,2.12444476,2012.9,2011.9,2.70744625]
[1770462115985,2.12444476,2012.9,2011.9,2.45879625]
[1770462117488,2.08320424,2012.8,2011.9,2.45879625]
[1770462117682,2.07482739,2012.7,2011.9,2.45879625]
[1770462117883,2.07482739,2012.7,2011.9,0.00639767]
[1770462118488,2.07482739,2012.7,2012.0,2.45239858]
[1770462119087,2.06972904,2012.5,2011.6,2.45239858]
[1770462119282,2.06477418,2012.4,2011.6,2.45239858]
[1770462120087,2.06477418,2012.4,2011.6,2.45731319]
[1770462120287,2.07446609,2012.3,2011.6,2.45731319]
[1770462120488,2.06997137,2012.2,2011.6,2.45731319]
[1770462120883,2.0698446,2012.2,2011.3,2.45239858]
[1770462121084,2.0698446,2012.1,2011.3,2.45239858]
[1770462121289,9.51697196,2012.3,2011.3,2.45239858]
[1770462121490,0.00623014,2012.3,2011.3,2.45239858]
[1770462121992,0.00623014,2012.3,2011.3,2.7074965]
[1770462122893,2.07160454,2012.3,2011.3,2.7074965]
[1770462123286,2.07160454,2012.3,2011.3,2.4587665]
[1770462123487,2.06047009,2012.0,2011.3,2.4587665]
[1770462123895,2.06047009,2012.0,2011.0,2.45239858]
[1770462124096,2.14706982,2011.9,2011.0,2.45239858]
[1770462124593,2.14217879,2011.8,2010.5,2.45239858]
[1770462124784,2.14194874,2011.7,2010.5,2.45239858]
[1770462124989,2.14194874,2011.7,2010.5,2.45764461]
[1770462125292,2.14194874,2011.6,2010.5,2.45764461]
[1770462125693,3.11083931,2012.1,2010.5,2.45764461]
[1770462125694,14.37350383,2011.5,2010.5,0.00524603]
[1770462125894,9.3920661,2011.2,2010.5,0.00524603]
[1770462126101,1.95116888,2011.2,2010.3,2.45239858]
[1770462126302,1.94592285,2011.1,2010.3,2.45239858]
[1770462127103,1.94592285,2011.1,2010.3,2.45700831]
[1770462128109,1.94592285,2011.1,2010.3,0.00460973]